[Event "Queens Festival Final-D 2022"]
[Site "Tornelo"]
[Date "2022.06.25"]
[Round "6.4"]
[White "Shriyan santosh Priyasha"]
[Black "Bakhshizada, Asnad"]
[Result "0-1"]
[ECO "E16"]
[WhiteElo "1597"]
[BlackElo "1052"]
[Annotator "NA RC"]
[PlyCount "188"]
[EventDate "2022.06.24"]
[EventType "tourn"]
[EventCountry "NET"]
[SourceTitle "playchess.com"]
[Source "ChessBase"]
[SourceQuality "1"]
[TimeControl "180+2"]

1. d4 {[%emt 0:00:02]} d5 {[%emt 0:00:04]} 2. c4 {[%emt 0:00:02]} e6 {[%emt 0:00:02]} 3. Nf3 {[%emt 0:00:02]} Nf6 {[%emt 0:00:02]} 4. g3 {[%emt 0:00:01]} b6 {[%emt 0:00:05]} 5. Bg2 {[%emt 0:00:02]} Bb7 {[%emt 0:00:01]} 6. O-O {[%emt 0:00:02]} dxc4 {[%emt 0:00:02]} 7. Qa4+ {[%emt 0:00:06]} Nbd7 {[%emt 0:00:06]} 8. Qxc4 {[%emt 0:00:03]} Be7 {[%emt 0:00:03]} 9. Nc3 {[%emt 0:00:04]} O-O {[%emt 0:00:03]} 10. Bf4 {[%emt 0:00:05]} c5 {[%emt 0:00:05]} 11. Rfd1 {[%emt 0:00:18]} Qc8 {[%emt 0:00:07]} 12. Rac1 {[%emt 0:00:17]} Qe8 {[%emt 0:00:16]} 13. Qb3 {[%emt 0:00:10]} cxd4 {[%emt 0:00:06]} 14. Nxd4 {[%emt 0:00:08]} Bxg2 {[%emt 0:00:04]} 15. Kxg2 {[%emt 0:00:00]} Nc5 {[%emt 0:00:03]} 16. Qc2 {[%emt 0:00:09]} a6 {[%emt 0:00:07]} 17. Nf3 {[%emt 0:00:09]} Rc8 {[%emt 0:00:06]} 18. Qb1 {[%emt 0:00:16]} h6 {[%emt 0:00:12]} 19. h4 {[%emt 0:00:04]} b5 {[%emt 0:00:15]} 20. b4 {[%emt 0:00:32]} Nb7 {[%emt 0:00:10]} 21. a3 {[%emt 0:00:06]} Nd8 {[%emt 0:00:09]} 22. Qb3 {[%emt 0:00:13]} Nc6 {[%emt 0:00:11]} 23. Qb1 {[%emt 0:00:12]} Rd8 {[%emt 0:00:10]} 24. Ne4 {[%emt 0:00:13]} Rxd1 {[%emt 0:00:05]} 25. Rxd1 {[%emt 0:00:04]} Nd5 {[%emt 0:00:08]} 26. Bd2 {[%emt 0:00:11]} f5 {[%emt 0:00:07]} 27. Nc3 {[%emt 0:00:03]} Nb6 {[%emt 0:00:09]} 28. a4 {[%emt 0:00:20]} bxa4 {[%emt 0:00:07]} 29. Qa2 {[%emt 0:00:03]} Bxb4 {[%emt 0:00:09]} 30. Nxa4 {[%emt 0:00:01]} Bxd2 {[%emt 0:00:03]} 31. Rxd2 {[%emt 0:00:01]} Nxa4 {[%emt 0:00:03]} 32. Qxa4 {[%emt 0:00:00]} Ne7 {[%emt 0:00:07]} 33. Qc4 {[%emt 0:00:02]} Nd5 {[%emt 0:00:07]} 34. Qxa6 {[%emt 0:00:02]} Qe7 {[%emt 0:00:05]} 35. Qd3 {[%emt 0:00:02]} Rc8 {[%emt 0:00:07]} 36. Ne5 {[%emt 0:00:01]} Rc3 {[%emt 0:00:06]} 37. Qd4 {[%emt 0:00:01]} Qf6 {[%emt 0:00:09]} 38. Nf3 {[%emt 0:00:02]} Qxd4 {[%emt 0:00:03]} 39. Nxd4 {[%emt 0:00:00]} Kf7 {[%emt 0:00:04]} 40. Nf3 {[%emt 0:00:02]} Ra3 {[%emt 0:00:02]} 41. Rd1 {[%emt 0:00:01]} Ne7 {[%emt 0:00:02]} 42. Rb1 {[%emt 0:00:01]} Ra2 {[%emt 0:00:02]} 43. Ne5+ {[%emt 0:00:01]} Kf6 {[%emt 0:00:02]} 44. Nd7+ {[%emt 0:00:03]} Kf7 {[%emt 0:00:01]} 45. Re1 {[%emt 0:00:02]} Ke8 {[%emt 0:00:03]} 46. Ne5 {[%emt 0:00:02]} Ra5 {[%emt 0:00:02]} 47. Nf3 {[%emt 0:00:01]} Nd5 {[%emt 0:00:02]} 48. e4 {[%emt 0:00:02]} fxe4 {[%emt 0:00:02]} 49. Rxe4 {[%emt 0:00:00]} Ra2 {[%emt 0:00:02]} 50. Rxe6+ {[%emt 0:00:02]} Kd7 {[%emt 0:00:01]} 51. Re1 {[%emt 0:00:02]} Kc6 {[%emt 0:00:02]} 52. Ne5+ {[%emt 0:00:01]} Kd6 {[%emt 0:00:03]} 53. Nf7+ {[%emt 0:00:02]} Kd7 {[%emt 0:00:02]} 54. Ne5+ {[%emt 0:00:01]} Kd6 {[%emt 0:00:02]} 55. Nd3 {[%emt 0:00:02]} Rd2 {[%emt 0:00:03]} 56. Nf4 {[%emt 0:00:02]} Nxf4+ {[%emt 0:00:03]} 57. gxf4 {[%emt 0:00:00]} Rd4 {[%emt 0:00:03]} 58. Kg3 {[%emt 0:00:01]} Ra4 {[%emt 0:00:02]} 59. Re3 {[%emt 0:00:02]} Rb4 {[%emt 0:00:02]} 60. Kg4 {[%emt 0:00:01]} Ra4 {[%emt 0:00:02]} 61. Rf3 {[%emt 0:00:03]} Ra5 {[%emt 0:00:04]} 62. f5 {[%emt 0:00:02]} Ke7 {[%emt 0:00:02]} 63. Kh5 {[%emt 0:00:02]} Kf6 {[%emt 0:00:02]} 64. Kg4 {[%emt 0:00:01]} Ra4+ {[%emt 0:00:02]} 65. Rf4 {[%emt 0:00:02]} Ra3 {[%emt 0:00:02]} 66. Re4 {[%emt 0:00:07]} Ra1 {[%emt 0:00:02]} 67. Re6+ {[%emt 0:00:03]} Kf7 {[%emt 0:00:02]} 68. Kf4 {[%emt 0:00:05]} Ra4+ {[%emt 0:00:02]} 69. Kg3 {[%emt 0:00:02]} Ra3+ {[%emt 0:00:02]} 70. Re3 {[%emt 0:00:01]} Ra5 {[%emt 0:00:03]} 71. Kf4 {[%emt 0:00:04]} Ra2 {[%emt 0:00:02]} 72. Kf3 {[%emt 0:00:01]} Kf6 {[%emt 0:00:02]} 73. Kg4 {[%emt 0:00:03]} Rxf2 {[%emt 0:00:03]} 74. Re6+ {[%emt 0:00:01]} Kf7 {[%emt 0:00:02]} 75. Rg6 {[%emt 0:00:02]} Rg2+ {[%emt 0:00:02]} 76. Kh5 {[%emt 0:00:02]} Ra2 {[%emt 0:00:02]} 77. Kg4 {[%emt 0:00:04]} Ra4+ {[%emt 0:00:02]} 78. Kh5 {[%emt 0:00:01]} Rf4 {[%emt 0:00:02]} 79. Rg2 {[%emt 0:00:03]} Rxf5+ {[%emt 0:00:02]} 80. Kg4 {[%emt 0:00:01]} Ra5 {[%emt 0:00:01]} 81. Kh3 {[%emt 0:00:02]} Ra3+ {[%emt 0:00:03]} 82. Kh2 {[%emt 0:00:01]} Kf6 {[%emt 0:00:02]} 83. Rf2+ {[%emt 0:00:01]} Kg6 {[%emt 0:00:01]} 84. Rf4 {[%emt 0:00:02]} Ra2+ {[%emt 0:00:03]} 85. Kh3 {[%emt 0:00:02]} Ra3+ {[%emt 0:00:01]} 86. Kg2 {[%emt 0:00:01]} Rd3 {[%emt 0:00:02]} 87. Kf1 {[%emt 0:00:02]} Ra3 {[%emt 0:00:03]} 88. Rc4 {[%emt 0:00:02]} Kh5 {[%emt 0:00:02]} 89. Kg2 {[%emt 0:00:02]} g5 {[%emt 0:00:03]} 90. hxg5 {[%emt 0:00:02]} hxg5 {[%emt 0:00:01]} 91. Rc5 {[%emt 0:00:02]} Kh4 {[%emt 0:00:03]} 92. Rc4+ {[%emt 0:00:02]} g4 {[%emt 0:00:01]} 93. Kg1 {[%emt 0:00:05]} Kh3 {[%emt 0:00:03]} 94. Rc3+ {[%emt 0:00:02]} Rxc3 {[%emt 0:00:03]} 0-1

[Event "Queens Festival Final-D 2022"]
[Site "Tornelo"]
[Date "2022.06.25"]
[Round "6.5"]
[White "Aydogan, Arya"]
[Black "Amulya Guruprasad"]
[Result "0-1"]
[ECO "C11"]
[WhiteElo "1409"]
[BlackElo "1251"]
[Annotator "NA RC"]
[PlyCount "86"]
[EventDate "2022.06.24"]
[EventType "tourn"]
[EventCountry "NET"]
[SourceTitle "playchess.com"]
[Source "ChessBase"]
[SourceQuality "1"]
[TimeControl "180+2"]

1. e4 {[%emt 0:00:02]} e6 {[%emt 0:00:04]} 2. d4 {[%emt 0:00:02]} d5 {[%emt 0:00:01]} 3. Nc3 {[%emt 0:00:01]} Nf6 {[%emt 0:00:03]} 4. e5 {[%emt 0:00:02]} Nfd7 {[%emt 0:00:01]} 5. f4 {[%emt 0:00:01]} c5 {[%emt 0:00:02]} 6. Nf3 {[%emt 0:00:01]} Nc6 {[%emt 0:00:02]} 7. Be3 {[%emt 0:00:01]} Be7 {[%emt 0:00:02]} 8. Be2 {[%emt 0:00:02]} a6 {[%emt 0:00:02]} 9. O-O {[%emt 0:00:05]} b5 {[%emt 0:00:02]} 10. dxc5 {[%emt 0:00:01]} Nxc5 {[%emt 0:00:02]} 11. Nd4 {[%emt 0:00:05]} Nxd4 {[%emt 0:00:04]} 12. Bxd4 {[%emt 0:00:02]} O-O {[%emt 0:00:03]} 13. Bf3 {[%emt 0:00:04]} Bb7 {[%emt 0:00:02]} 14. Qd2 {[%emt 0:00:02]} Rc8 {[%emt 0:00:02]} 15. Rad1 {[%emt 0:00:15]} Qc7 {[%emt 0:00:21]} 16. Ne2 {[%emt 0:00:08]} Ne4 {[%emt 0:00:07]} 17. Bxe4 {[%emt 0:00:04]} dxe4 {[%emt 0:00:02]} 18. c3 {[%emt 0:00:01]} Qc6 {[%emt 0:00:07]} 19. Qe3 {[%emt 0:00:03]} Qc4 {[%emt 0:00:23]} 20. a3 {[%emt 0:00:10]} Rcd8 {[%emt 0:00:13]} 21. Ng3 {[%emt 0:00:08]} Qc6 {[%emt 0:00:04]} 22. Rfe1 {[%emt 0:00:04]} f6 {[%emt 0:00:16]} 23. exf6 {[%emt 0:00:30]} Bxf6 {[%emt 0:00:02]} 24. Bxf6 {[%emt 0:00:11]} Rxd1 {[%emt 0:00:04]} 25. Rxd1 {[%emt 0:00:01]} Rxf6 {[%emt 0:00:02]} 26. Rd4 {[%emt 0:00:08]} Qc7 {[%emt 0:00:23]} 27. Nxe4 {[%emt 0:00:26]} Rxf4 {[%emt 0:00:03]} 28. g3 {[%emt 0:00:05]} Rxe4 {[%emt 0:00:21]} 29. Rxe4 {[%emt 0:00:03]} Qc6 {[%emt 0:00:02]} 30. Qa7 {[%emt 0:00:34]} Qxe4 {[%emt 0:00:05]} 31. Qb8+ {[%emt 0:00:02]} Kf7 {[%emt 0:00:02]} 32. Qc7+ {[%emt 0:00:02]} Kg6 {[%emt 0:00:02]} 33. Kf2 {[%emt 0:00:03]} Qf3+ {[%emt 0:00:05]} 34. Ke1 {[%emt 0:00:02]} Be4 {[%emt 0:00:03]} 35. Qe5 {[%emt 0:00:04]} Qe3+ {[%emt 0:00:05]} 36. Kf1 {[%emt 0:00:05]} Bd3+ {[%emt 0:00:03]} 37. Kg2 {[%emt 0:00:06]} Qxe5 {[%emt 0:00:02]} 38. h3 {[%emt 0:00:01]} Qe2+ {[%emt 0:00:02]} 39. Kg1 {[%emt 0:00:02]} Qe3+ {[%emt 0:00:01]} 40. Kg2 {[%emt 0:00:02]} Be2 {[%emt 0:00:03]} 41. g4 {[%emt 0:00:02]} Qf3+ {[%emt 0:00:02]} 42. Kg1 {[%emt 0:00:01]} Bf1 {[%emt 0:00:02]} 43. Kh2 {[%emt 0:00:04]} Qg2# {[%emt 0:00:01]} 0-1

[Event "Queens Festival Final-D 2022"]
[Site "Tornelo"]
[Date "2022.06.25"]
[Round "6.6"]
[White "Vujovic, Vera"]
[Black "Jiang, Tianyu"]
[Result "0-1"]
[ECO "B49"]
[WhiteElo "1353"]
[BlackElo "1502"]
[Annotator "NA RC"]
[PlyCount "84"]
[EventDate "2022.06.24"]
[EventType "tourn"]
[EventCountry "NET"]
[SourceTitle "playchess.com"]
[Source "ChessBase"]
[SourceQuality "1"]
[TimeControl "180+2"]

1. e4 {[%emt 0:00:02]} c5 {[%emt 0:00:04]} 2. Nf3 {[%emt 0:00:01]} e6 {[%emt 0:00:02]} 3. d4 {[%emt 0:00:01]} cxd4 {[%emt 0:00:00]} 4. Nxd4 {[%emt 0:00:01]} Nc6 {[%emt 0:00:00]} 5. Nc3 {[%emt 0:00:04]} Qc7 {[%emt 0:00:02]} 6. Be3 {[%emt 0:00:01]} a6 {[%emt 0:00:02]} 7. Be2 {[%emt 0:00:04]} Nf6 {[%emt 0:00:00]} 8. O-O {[%emt 0:00:04]} Bb4 {[%emt 0:00:01]} 9. Qd2 {[%emt 0:00:09]} Nxe4 {[%emt 0:00:02]} 10. Qd3 {[%emt 0:00:01]} Nf6 {[%emt 0:00:26]} 11. Ne4 {[%emt 0:00:14]} Be7 {[%emt 0:00:21]} 12. Rad1 {[%emt 0:00:12]} O-O {[%emt 0:00:03]} 13. Kh1 {[%emt 0:00:06]} d5 {[%emt 0:00:02]} 14. Ng3 {[%emt 0:00:06]} Ne5 {[%emt 0:00:06]} 15. Qd2 {[%emt 0:00:04]} Neg4 {[%emt 0:00:08]} 16. Bxg4 {[%emt 0:00:12]} Nxg4 {[%emt 0:00:00]} 17. h3 {[%emt 0:00:15]} Nxe3 {[%emt 0:00:03]} 18. fxe3 {[%emt 0:00:06]} Qxg3 {[%emt 0:00:02]} 19. Rf3 {[%emt 0:00:07]} Qc7 {[%emt 0:00:02]} 20. Qd3 {[%emt 0:00:05]} e5 {[%emt 0:00:04]} 21. Rf2 {[%emt 0:00:45]} exd4 {[%emt 0:00:02]} 22. Qxd4 {[%emt 0:00:03]} Be6 {[%emt 0:00:01]} 23. c3 {[%emt 0:00:11]} Bf6 {[%emt 0:00:02]} 24. Rxf6 {[%emt 0:00:05]} gxf6 {[%emt 0:00:02]} 25. Rf1 {[%emt 0:00:03]} Qe5 {[%emt 0:00:02]} 26. Qh4 {[%emt 0:00:16]} Qg5 {[%emt 0:00:03]} 27. Qd4 {[%emt 0:00:04]} f5 {[%emt 0:00:04]} 28. h4 {[%emt 0:00:03]} Qg4 {[%emt 0:00:02]} 29. Rf4 {[%emt 0:00:04]} Qg7 {[%emt 0:00:02]} 30. Qd2 {[%emt 0:00:03]} Kh8 {[%emt 0:00:05]} 31. Rf2 {[%emt 0:00:03]} Qf6 {[%emt 0:00:02]} 32. Rf4 {[%emt 0:00:05]} Rg8 {[%emt 0:00:01]} 33. Qf2 {[%emt 0:00:02]} Qg7 {[%emt 0:00:03]} 34. Rf3 {[%emt 0:00:04]} Qh6 {[%emt 0:00:01]} 35. Rh3 {[%emt 0:00:03]} f4 {[%emt 0:00:02]} 36. Rh2 {[%emt 0:00:05]} fxe3 {[%emt 0:00:06]} 37. Qe2 {[%emt 0:00:01]} Qf4 {[%emt 0:00:06]} 38. h5 {[%emt 0:00:07]} h6 {[%emt 0:00:03]} 39. Qe1 {[%emt 0:00:08]} Qf2 {[%emt 0:00:02]} 40. Qd1 {[%emt 0:00:01]} e2 {[%emt 0:00:02]} 41. Qxe2 {[%emt 0:00:03]} Qxe2 {[%emt 0:00:01]} 42. g4 {[%emt 0:00:00]} Qf1# {[%emt 0:00:02]} 0-1

[Event "Queens Festival Final-D 2022"]
[Site "Tornelo"]
[Date "2022.06.25"]
[Round "7.2"]
[White "Amulya Guruprasad"]
[Black "Vujovic, Vera"]
[Result "1-0"]
[ECO "B52"]
[WhiteElo "1251"]
[BlackElo "1353"]
[Annotator "NA RC"]
[PlyCount "85"]
[EventDate "2022.06.24"]
[EventType "tourn"]
[EventCountry "NET"]
[SourceTitle "playchess.com"]
[Source "ChessBase"]
[SourceQuality "1"]
[TimeControl "180+2"]

1. e4 {[%emt 0:00:02]} c5 {[%emt 0:00:04]} 2. Nf3 {[%emt 0:00:01]} d6 {[%emt 0:00:01]} 3. Bb5+ {[%emt 0:00:02]} Bd7 {[%emt 0:00:01]} 4. Bxd7+ {[%emt 0:00:01]} Qxd7 {[%emt 0:00:01]} 5. d4 {[%emt 0:00:02]} cxd4 {[%emt 0:00:02]} 6. Nxd4 {[%emt 0:00:03]} Nf6 {[%emt 0:00:01]} 7. Nd2 {[%emt 0:00:07]} Nc6 {[%emt 0:00:02]} 8. Nf5 {[%emt 0:00:05]} g6 {[%emt 0:00:08]} 9. Ng3 {[%emt 0:00:04]} Bg7 {[%emt 0:00:02]} 10. O-O {[%emt 0:00:02]} O-O {[%emt 0:00:03]} 11. c3 {[%emt 0:00:02]} a6 {[%emt 0:00:09]} 12. Kh1 {[%emt 0:00:01]} b5 {[%emt 0:00:01]} 13. f4 {[%emt 0:00:03]} Qg4 {[%emt 0:00:09]} 14. Qe1 {[%emt 0:00:16]} Rae8 {[%emt 0:00:29]} 15. f5 {[%emt 0:00:02]} Nd7 {[%emt 0:00:16]} 16. h3 {[%emt 0:00:03]} Qh4 {[%emt 0:00:02]} 17. Nf3 {[%emt 0:00:03]} Qf6 {[%emt 0:00:42]} 18. Bg5 {[%emt 0:00:03]} Qxg5 {[%emt 0:00:03]} 19. Nxg5 {[%emt 0:00:02]} e6 {[%emt 0:00:03]} 20. fxe6 {[%emt 0:00:08]} fxe6 {[%emt 0:00:01]} 21. Rxf8+ {[%emt 0:00:03]} Nxf8 {[%emt 0:00:01]} 22. Qd2 {[%emt 0:00:06]} Bh6 {[%emt 0:00:05]} 23. h4 {[%emt 0:00:05]} Rd8 {[%emt 0:00:04]} 24. Rf1 {[%emt 0:00:04]} Ne5 {[%emt 0:00:08]} 25. Qf4 {[%emt 0:00:03]} Rd7 {[%emt 0:00:12]} 26. Qf2 {[%emt 0:00:17]} Bxg5 {[%emt 0:00:08]} 27. hxg5 {[%emt 0:00:02]} Rf7 {[%emt 0:00:12]} 28. Qe2 {[%emt 0:00:03]} Re7 {[%emt 0:00:03]} 29. Rd1 {[%emt 0:00:06]} Nf7 {[%emt 0:00:04]} 30. c4 {[%emt 0:00:08]} b4 {[%emt 0:00:04]} 31. Qd2 {[%emt 0:00:05]} a5 {[%emt 0:00:05]} 32. a3 {[%emt 0:00:03]} Rb7 {[%emt 0:00:01]} 33. axb4 {[%emt 0:00:02]} Rxb4 {[%emt 0:00:02]} 34. Qc3 {[%emt 0:00:02]} Nd7 {[%emt 0:00:05]} 35. Ne2 {[%emt 0:00:11]} Nde5 {[%emt 0:00:03]} 36. b3 {[%emt 0:00:01]} Nxg5 {[%emt 0:00:05]} 37. Rxd6 {[%emt 0:00:05]} Nxe4 {[%emt 0:00:01]} 38. Rd8+ {[%emt 0:00:06]} Kf7 {[%emt 0:00:01]} 39. Qxe5 {[%emt 0:00:02]} Nf2+ {[%emt 0:00:04]} 40. Kg1 {[%emt 0:00:02]} Ng4 {[%emt 0:00:07]} 41. Qc7+ {[%emt 0:00:03]} Kf6 {[%emt 0:00:01]} 42. Qf4+ {[%emt 0:00:04]} Ke7 {[%emt 0:00:03]} 43. Qf8# {[%emt 0:00:02]} 1-0

[Event "Queens Festival Final-D 2022"]
[Site "Tornelo"]
[Date "2022.06.25"]
[Round "7.3"]
[White "Bakhshizada, Asnad"]
[Black "Aydogan, Arya"]
[Result "0-1"]
[ECO "D31"]
[WhiteElo "1052"]
[BlackElo "1409"]
[Annotator "NA RC"]
[PlyCount "74"]
[EventDate "2022.06.24"]
[EventType "tourn"]
[EventCountry "NET"]
[SourceTitle "playchess.com"]
[Source "ChessBase"]
[SourceQuality "1"]
[TimeControl "180+2"]

1. d4 {[%emt 0:00:02]} d5 {[%emt 0:00:04]} 2. c4 {[%emt 0:00:03]} e6 {[%emt 0:00:01]} 3. Nc3 {[%emt 0:00:02]} a6 {[%emt 0:00:02]} 4. Nf3 {[%emt 0:00:05]} dxc4 {[%emt 0:00:01]} 5. Bg5 {[%emt 0:00:03]} Be7 {[%emt 0:00:02]} 6. Bxe7 {[%emt 0:00:04]} Nxe7 {[%emt 0:00:01]} 7. e3 {[%emt 0:00:02]} b5 {[%emt 0:00:02]} 8. a4 {[%emt 0:00:04]} b4 {[%emt 0:00:03]} 9. Na2 {[%emt 0:00:04]} a5 {[%emt 0:00:13]} 10. Bxc4 {[%emt 0:00:05]} Bb7 {[%emt 0:00:11]} 11. O-O {[%emt 0:00:02]} Nd7 {[%emt 0:00:04]} 12. Nc1 {[%emt 0:00:08]} O-O {[%emt 0:00:04]} 13. Nd3 {[%emt 0:00:02]} Rc8 {[%emt 0:00:07]} 14. Nde5 {[%emt 0:00:03]} Nxe5 {[%emt 0:00:06]} 15. Nxe5 {[%emt 0:00:04]} c5 {[%emt 0:00:03]} 16. dxc5 {[%emt 0:00:31]} Rxc5 {[%emt 0:00:11]} 17. f4 {[%emt 0:00:42]} Nd5 {[%emt 0:00:21]} 18. Bxd5 {[%emt 0:00:22]} Rxd5 {[%emt 0:00:05]} 19. Qb3 {[%emt 0:00:14]} Rd2 {[%emt 0:00:05]} 20. Nf3 {[%emt 0:00:04]} Rd3 {[%emt 0:00:06]} 21. Qc2 {[%emt 0:00:16]} Rxe3 {[%emt 0:00:04]} 22. Rad1 {[%emt 0:00:04]} Qf6 {[%emt 0:00:02]} 23. Nd4 {[%emt 0:00:19]} Re4 {[%emt 0:00:13]} 24. Ne2 {[%emt 0:00:12]} Rc8 {[%emt 0:00:04]} 25. Qd2 {[%emt 0:00:05]} Ba6 {[%emt 0:00:04]} 26. Rfe1 {[%emt 0:00:03]} h6 {[%emt 0:00:06]} 27. h3 {[%emt 0:00:04]} g6 {[%emt 0:00:17]} 28. Ng3 {[%emt 0:00:02]} Rxe1+ {[%emt 0:00:13]} 29. Rxe1 {[%emt 0:00:02]} Rd8 {[%emt 0:00:02]} 30. Qe3 {[%emt 0:00:03]} Qxb2 {[%emt 0:00:05]} 31. Qb6 {[%emt 0:00:03]} Qd4+ {[%emt 0:00:04]} 32. Qxd4 {[%emt 0:00:03]} Rxd4 {[%emt 0:00:02]} 33. Rc1 {[%emt 0:00:01]} Rc4 {[%emt 0:00:08]} 34. Rb1 {[%emt 0:00:02]} Rxf4 {[%emt 0:00:02]} 35. Ne2 {[%emt 0:00:03]} Re4 {[%emt 0:00:03]} 36. Ng3 {[%emt 0:00:02]} Re3 {[%emt 0:00:02]} 37. Nf1 {[%emt 0:00:02]} Ra3 {[%emt 0:00:01]} 0-1

[Event "Queens Festival Final-D 2022"]
[Site "Tornelo"]
[Date "2022.06.25"]
[Round "7.4"]
[White "Rajaram, Anika"]
[Black "Shriyan santosh Priyasha"]
[Result "1-0"]
[ECO "E69"]
[WhiteElo "1499"]
[BlackElo "1597"]
[Annotator "NA RC"]
[PlyCount "99"]
[EventDate "2022.06.24"]
[EventType "tourn"]
[EventCountry "NET"]
[SourceTitle "playchess.com"]
[Source "ChessBase"]
[SourceQuality "1"]
[TimeControl "180+2"]

1. d4 {[%emt 0:00:02]} g6 {[%emt 0:00:07]} 2. c4 {[%emt 0:00:04]} Bg7 {[%emt 0:00:02]} 3. g3 {[%emt 0:00:01]} Nf6 {[%emt 0:00:03]} 4. Bg2 {[%emt 0:00:02]} O-O {[%emt 0:00:02]} 5. Nc3 {[%emt 0:00:01]} d6 {[%emt 0:00:02]} 6. Nf3 {[%emt 0:00:01]} c6 {[%emt 0:00:01]} 7. O-O {[%emt 0:00:01]} Re8 {[%emt 0:00:02]} 8. e4 {[%emt 0:00:02]} Nbd7 {[%emt 0:00:19]} 9. h3 {[%emt 0:00:02]} e5 {[%emt 0:00:02]} 10. Re1 {[%emt 0:00:01]} Nb6 {[%emt 0:00:11]} 11. Qd3 {[%emt 0:00:19]} Qe7 {[%emt 0:00:28]} 12. Be3 {[%emt 0:00:13]} Bd7 {[%emt 0:00:07]} 13. d5 {[%emt 0:00:03]} cxd5 {[%emt 0:00:15]} 14. cxd5 {[%emt 0:00:04]} Qd8 {[%emt 0:00:07]} 15. Rac1 {[%emt 0:00:04]} Rc8 {[%emt 0:00:04]} 16. Nd2 {[%emt 0:00:24]} h6 {[%emt 0:00:08]} 17. Nb5 {[%emt 0:00:07]} Bxb5 {[%emt 0:00:09]} 18. Qxb5 {[%emt 0:00:04]} Nfd7 {[%emt 0:00:14]} 19. Nc4 {[%emt 0:00:11]} Nxc4 {[%emt 0:00:09]} 20. Rxc4 {[%emt 0:00:02]} Rxc4 {[%emt 0:00:10]} 21. Qxc4 {[%emt 0:00:02]} b6 {[%emt 0:00:13]} 22. b4 {[%emt 0:00:10]} Nf6 {[%emt 0:00:10]} 23. Rc1 {[%emt 0:00:05]} h5 {[%emt 0:00:25]} 24. Qc7 {[%emt 0:00:04]} Qb8 {[%emt 0:00:11]} 25. Rc6 {[%emt 0:00:09]} Rd8 {[%emt 0:00:04]} 26. a4 {[%emt 0:00:13]} Ne8 {[%emt 0:00:03]} 27. Qxb8 {[%emt 0:00:05]} Rxb8 {[%emt 0:00:00]} 28. b5 {[%emt 0:00:02]} Rd8 {[%emt 0:00:02]} 29. Bd2 {[%emt 0:00:05]} Nf6 {[%emt 0:00:02]} 30. Bb4 {[%emt 0:00:03]} Bf8 {[%emt 0:00:02]} 31. Rc7 {[%emt 0:00:04]} Kg7 {[%emt 0:00:01]} 32. Rxa7 {[%emt 0:00:02]} Rc8 {[%emt 0:00:03]} 33. a5 {[%emt 0:00:31]} bxa5 {[%emt 0:00:02]} 34. Bxa5 {[%emt 0:00:03]} Rc1+ {[%emt 0:00:01]} 35. Kh2 {[%emt 0:00:03]} Rc2 {[%emt 0:00:03]} 36. b6 {[%emt 0:00:14]} Rb2 {[%emt 0:00:02]} 37. b7 {[%emt 0:00:05]} Nd7 {[%emt 0:00:03]} 38. Bc7 {[%emt 0:00:01]} Rb1 {[%emt 0:00:04]} 39. Bf3 {[%emt 0:00:09]} Kg8 {[%emt 0:00:02]} 40. Kg2 {[%emt 0:00:05]} Bh6 {[%emt 0:00:01]} 41. Ra8+ {[%emt 0:00:03]} Kg7 {[%emt 0:00:02]} 42. b8=Q {[%emt 0:00:02]} Nxb8 {[%emt 0:00:02]} 43. Rxb8 {[%emt 0:00:01]} Rc1 {[%emt 0:00:01]} 44. Bxd6 {[%emt 0:00:03]} f6 {[%emt 0:00:03]} 45. Rb7+ {[%emt 0:00:02]} Kg8 {[%emt 0:00:03]} 46. Be7 {[%emt 0:00:03]} f5 {[%emt 0:00:02]} 47. d6 {[%emt 0:00:02]} fxe4 {[%emt 0:00:02]} 48. Bxe4 {[%emt 0:00:01]} Rd1 {[%emt 0:00:01]} 49. d7 {[%emt 0:00:03]} Bf8 {[%emt 0:00:04]} 50. d8=Q {[%emt 0:00:04]} 1-0

[Event "Queens Festival Final-D 2022"]
[Site "Tornelo"]
[Date "2022.06.25"]
[Round "7.6"]
[White "Shah, Riya"]
[Black "Mak, Xiu Ning Charlene"]
[Result "1-0"]
[ECO "A03"]
[WhiteElo "1559"]
[BlackElo "1573"]
[Annotator "NA RC"]
[PlyCount "71"]
[EventDate "2022.06.24"]
[EventType "tourn"]
[EventCountry "NET"]
[SourceTitle "playchess.com"]
[Source "ChessBase"]
[SourceQuality "1"]
[TimeControl "180+2"]

1. d4 {[%emt 0:00:02]} Nf6 {[%emt 0:00:05]} 2. e3 {[%emt 0:00:01]} g6 {[%emt 0:00:02]} 3. Bd3 {[%emt 0:00:02]} Bg7 {[%emt 0:00:02]} 4. f4 {[%emt 0:00:01]} d5 {[%emt 0:00:15]} 5. Nf3 {[%emt 0:00:04]} O-O {[%emt 0:00:03]} 6. O-O {[%emt 0:00:03]} c5 {[%emt 0:00:05]} 7. c3 {[%emt 0:00:04]} Nbd7 {[%emt 0:00:04]} 8. Ne5 {[%emt 0:00:03]} Qc7 {[%emt 0:00:13]} 9. b3 {[%emt 0:00:05]} Ne4 {[%emt 0:00:06]} 10. Bb2 {[%emt 0:00:16]} f6 {[%emt 0:00:08]} 11. Nxd7 {[%emt 0:00:07]} Bxd7 {[%emt 0:00:02]} 12. Bxe4 {[%emt 0:00:13]} dxe4 {[%emt 0:00:02]} 13. dxc5 {[%emt 0:00:04]} Rad8 {[%emt 0:00:04]} 14. b4 {[%emt 0:00:10]} Kh8 {[%emt 0:00:03]} 15. Qc2 {[%emt 0:00:12]} Bb5 {[%emt 0:00:02]} 16. Rd1 {[%emt 0:00:03]} Bd3 {[%emt 0:00:01]} 17. Qf2 {[%emt 0:00:09]} Rd7 {[%emt 0:00:10]} 18. Nd2 {[%emt 0:00:16]} Rfd8 {[%emt 0:00:02]} 19. Nb3 {[%emt 0:00:01]} e5 {[%emt 0:00:12]} 20. fxe5 {[%emt 0:00:09]} Qxe5 {[%emt 0:00:02]} 21. c4 {[%emt 0:00:21]} Qe6 {[%emt 0:00:05]} 22. Rac1 {[%emt 0:00:05]} Bxc4 {[%emt 0:00:06]} 23. Rxd7 {[%emt 0:00:11]} Rxd7 {[%emt 0:00:02]} 24. Nd4 {[%emt 0:00:01]} Qf7 {[%emt 0:00:04]} 25. a3 {[%emt 0:00:05]} Bd3 {[%emt 0:00:07]} 26. c6 {[%emt 0:00:03]} bxc6 {[%emt 0:00:06]} 27. Rxc6 {[%emt 0:00:02]} h6 {[%emt 0:00:34]} 28. h3 {[%emt 0:00:17]} Kh7 {[%emt 0:00:01]} 29. Ne2 {[%emt 0:00:06]} f5 {[%emt 0:00:05]} 30. Bxg7 {[%emt 0:00:04]} Qxg7 {[%emt 0:00:00]} 31. Nf4 {[%emt 0:00:01]} Qa1+ {[%emt 0:00:04]} 32. Kh2 {[%emt 0:00:03]} Rg7 {[%emt 0:00:06]} 33. Qh4 {[%emt 0:00:18]} g5 {[%emt 0:00:11]} 34. Qxh6+ {[%emt 0:00:04]} Kg8 {[%emt 0:00:01]} 35. Rc8+ {[%emt 0:00:05]} Kf7 {[%emt 0:00:02]} 36. Qe6# {[%emt 0:00:02]} 1-0